fUSD/lending_fUSD_20250213
["ID","MTS","AMOUNT","RATE_DAILY","PERIOD"]
[352909270,1739411432582,-197.29,0.00015258,2]
[352909272,1739411432592,-1000.0,0.000154,2]
[352909274,1739411432601,-6756.44710787,0.00015595,5]
[352909276,1739411432611,-371.050457,0.0001562,5]
[352909278,1739411432620,-4489.76700311,0.00015623,5]
[352909280,1739411432632,-158.43002864,0.00015623,5]
[352909282,1739411432643,-6756.44710787,0.00015624,5]
[352909284,1739411432652,-200.0,0.00015625,5]
[352909286,1739411432662,-371.050457,0.0001563,5]
[352909288,1739411432673,-2252.14903595,0.00015637,5]
[352909290,1739411432682,-2252.14903595,0.00015639,5]
[352909292,1739411432692,-6756.44710787,0.00015655,5]
[352909294,1739411432701,-2252.14903595,0.00015661,5]
[352909296,1739411432711,-4648.19703175,0.00015669,5]
[352909298,1739411432721,-4648.19703175,0.00015669,5]
[352909300,1739411432730,-4648.19703175,0.00015674,5]
[352909302,1739411432739,-371.050457,0.00015677,5]
[352909304,1739411432749,-487.1425853,0.0001568,2]
[352909306,1739411432758,-6756.44710787,0.00015687,5]
[352909308,1739411432767,-508.41,0.00015688,2]
[352909311,1739411432782,-371.050457,0.00015694,5]
[352909313,1739411432791,-444.46796497,0.00015695,2]
[352909315,1739411433127,960.8,0.0002,120]
[352909321,1739411437788,-46.72203503,0.00015695,2]
[352909322,1739411437801,-2252.14903595,0.00015699,5]
[352909323,1739411437812,-504.4,0.0001571,2]
[352909324,1739411437821,-492.75,0.0001574,2]
[352909325,1739411437831,-687.92043846,0.0001576,2]
[352909326,1739411437842,-152.0,0.00015779,2]
[352909327,1739411437852,-210.38086729,0.00015791,2]
[352909328,1739411437862,-191.28753583,0.00015794,2]
[352909329,1739411437873,-494.72,0.000158,2]
[352909330,1739411437885,-151.0,0.000158,2]
[352909331,1739411437895,-185.240205,0.000158,2]
[352909332,1739411437907,-185.240205,0.000158,2]
[352909333,1739411437919,-167.945585,0.000158,2]
[352909334,1739411437931,-167.945585,0.000158,2]
[352909335,1739411437941,-747.0,0.000158,2]
[352909336,1739411437952,-150.76789159,0.00015807,2]
[352909337,1739411437964,-262.99849374,0.00015821,2]
[352909338,1739411437974,-119.34430917,0.00015824,2]
[352909339,1739411438010,-4422.61359693,0.00015779,2]
[352909340,1739411438020,-30.65569083,0.00015824,2]
[352909341,1739411438029,-165.41328663,0.00015829,2]
[352909342,1739411438039,-54.64899708,0.00015853,2]
[352909347,1739411439812,-95.35100292,0.00015853,2]
[352909348,1739411439822,-150.0,0.00015859,2]
[352909349,1739411439831,-420.64899708,0.0001589,2]
[352909350,1739411439915,-1013.59538086,0.0001589,2]
[352909351,1739411439924,-165.73292476,0.0001589,2]
[352909352,1739411439934,-1434.2443778,0.00015891,2]
[352909353,1739411439944,-1434.2443778,0.00015891,2]
[352909354,1739411439954,-1434.2443778,0.00015892,2]
[352909355,1739411439963,-1434.2443778,0.00015892,2]
[352909356,1739411439972,-1434.2443778,0.00015893,2]
[352909357,1739411439982,-1434.2443778,0.00015893,2]
[352909358,1739411439991,-1434.2443778,0.00015894,2]
[352909359,1739411440001,-1434.2443778,0.00015894,2]
[352909360,1739411440011,-1434.2443778,0.00015895,2]
[352909361,1739411440020,-1434.2443778,0.00015895,2]
[352909362,1739411440031,-1434.2443778,0.00015896,2]
[352909363,1739411440040,-1434.2443778,0.00015896,2]
[352909364,1739411440050,-1434.2443778,0.00015897,2]
[352909365,1739411440061,-1434.2443778,0.00015897,2]
[352909366,1739411440070,-1434.2443778,0.00015898,2]
[352909367,1739411440080,-1434.2443778,0.00015898,2]
[352909368,1739411440089,-1434.2443778,0.00015899,2]
[352909369,1739411440099,-1434.2443778,0.00015899,2]
[352909370,1739411440109,-356.64713415,0.000159,2]
[352909371,1739411440543,-85.71122754,0.000159,2]
[352909372,1739411440552,-3192.0345264,0.000159,2]
[352909373,1739411440562,-173.12453834,0.000159,2]
[352909374,1739411440571,-164.39072587,0.000159,2]
[352909375,1739411440580,-1434.2443778,0.000159,2]
[352909376,1739411440590,-207.74876008,0.000159,2]
[352909377,1739411440600,-150.0865413,0.000159,2]
[352909378,1739411440610,-10000.0,0.000159,2]
[352909379,1739411440619,-150.0,0.00015901,2]
[352909380,1739411440629,-150.0,0.00015916,2]
[352909381,1739411440638,-150.0,0.00015938,2]
[352909382,1739411440647,-3192.03452633,0.00015956,2]
[352909383,1739411440656,-150.0,0.00015957,2]
[352909384,1739411440666,-2026.955,0.00015959,2]
[352909385,1739411440675,-1276.385,0.00015959,2]
[352909386,1739411440685,-641.367,0.00015959,2]
[352909387,1739411440694,-572.625,0.00015959,2]
[352909388,1739411440704,-264.728,0.00015959,2]
[352909389,1739411440713,-1786.0,0.00015959,2]
[352909390,1739411440723,-234.18477634,0.00015959,2]
[352909391,1739411440739,-791.38875896,0.00015959,2]
[352909392,1739411440764,-242.2164647,0.00015959,2]
[352909393,1739411440774,-987.64,0.00015959,2]
[352909394,1739411440783,-157.55021759,0.00015959,2]
[352909395,1739411440795,-433.7092674,0.00015959,2]
[352909396,1739411440810,-193.74051501,0.00015959,2]
[352909397,1739411440820,-131.25248505,0.00015959,2]
[352909398,1739411440852,-2824.74751495,0.00015959,2]
[352909399,1739411440861,-540.263,0.00015959,2]
[352909400,1739411440871,-690.42128511,0.00015959,2]
[352909401,1739411440883,-1428.50840388,0.00015959,2]
[352909423,1739411442832,-282.22400001,0.00015959,2]
[352909425,1739411442845,-386.4901369,0.00015959,2]
[352909428,1739411442857,-392.53922624,0.00015959,2]
[352909430,1739411442868,-545.755,0.00015959,2]
[352909436,1739411442924,-305.97394786,0.00015959,2]
[352909438,1739411442933,-250.0,0.00015959,2]
[352909440,1739411442943,-1008.603,0.00015959,2]
[352909442,1739411442952,-3073.95089479,0.00015959,2]
[352909444,1739411442964,-835.04991627,0.00015959,2]
[352909448,1739411442991,-20.21218894,0.00015959,2]
[352909450,1739411443001,-150.856,0.00015959,2]
[352909452,1739411443010,-231.0,0.00015959,2]
[352909454,1739411443019,-500.0,0.00015973,2]
[352909455,1739411443028,-27.67462063,0.0001598,2]
[352909458,1739411443040,-512.6900035,0.0001598,2]
[352909460,1739411443058,-512.00786555,0.0001598,2]
[352909462,1739411443069,-1542.58350035,0.0001598,2]
[352909485,1739411445153,960.8,0.0002,120]
[352909493,1739411446055,-304.74891733,0.0001589,2]
[352909494,1739411446065,-169.0,0.00015959,2]
[352909495,1739411446075,-42449.45260127,0.0001598,2]
[352909496,1739411457072,960.8,0.0002,120]
[352909497,1739411468834,960.8,0.0002,120]
[352909498,1739411480958,960.8,0.0002,120]
[352909499,1739411493182,960.8,0.0002,120]
[352909500,1739411503448,960.8,0.0002,120]
[352909501,1739411514286,960.8,0.0002,120]
[352909502,1739411525372,960.8,0.0002,120]
[352909503,1739411535980,960.8,0.0002,120]
[352909504,1739411551215,960.8,0.0002,120]
[352909505,1739411562004,960.88521054,0.0002,120]
[352909506,1739411618643,500.0,0.0002,120]
[352909507,1739411734487,585.23,0.0002,120]
[352909508,1739411836377,233.11379185,0.0002,120]
[352909510,1739412084765,2731.9706428,0.0002,120]
[352909511,1739412184178,456.0,0.0002,120]
[352909512,1739412407119,-643.88,0.00012949,2]
[352909513,1739412407143,-150.0,0.00013429,2]
[352909514,1739412407166,-500.0,0.00013726,2]
[352909515,1739412407187,-150.0,0.00014024,2]
[352909516,1739412407209,-150.0,0.00014244,2]
[352909517,1739412407231,-242.54,0.00014677,2]
[352909518,1739412407255,-646.11,0.00014684,2]
[352909519,1739412407280,-300.0,0.00014738,2]
[352909520,1739412407303,-2084.69645874,0.00014739,2]
[352909523,1739412632021,-150.0,0.00014728,2]
[352909524,1739412632032,-300.0,0.00014738,2]
[352909525,1739412632042,-150.0,0.00014739,2]
[352909526,1739412632053,-12621.01354126,0.00014739,2]
[352909527,1739412632063,-200.0,0.00014751,2]
[352909528,1739412632073,-606.22090374,0.00014793,2]
[352909529,1739412632084,-150.0,0.00014793,2]
[352909530,1739412632094,-168.3,0.00014869,2]
[352909531,1739412632103,-1000.0,0.00014869,2]
[352909532,1739412632113,-202.94,0.00014882,2]
[352909533,1739412632123,-150.0,0.00014923,2]
[352909534,1739412632133,-1004.62236682,0.00014923,2]
[352909535,1739412632142,-22940.61795551,0.00014924,2]
[352909536,1739412632154,-22980.81204449,0.00014924,2]
[352909537,1739412632164,-250.0,0.00014924,2]
[352909538,1739412632179,-4794.10459806,0.00015,2]
[352909539,1739412632234,-5632.22540194,0.00015,2]
[352909540,1739412632245,-493.47,0.00015003,2]
[352909541,1739412632254,-1986.35,0.00015015,2]
[352909542,1739412632264,-363.14678969,0.00015015,2]
[352909543,1739412632290,-143.30321031,0.00015015,2]
[352909544,1739412632299,-238.77678969,0.00015015,2]
[352909545,1739412632311,-263.49321031,0.00015015,2]
[352909546,1739412632320,-494.67,0.00015015,2]
[352909547,1739412632330,-496.71,0.00015015,2]
[352909548,1739412632339,-2768.0,0.000151,4]
[352909549,1739412632350,-170.96,0.00015116,2]
[352909550,1739412632359,-643.88,0.00015213,2]
[352909551,1739412632369,-9658.77,0.0001531,2]
[352909552,1739412632378,-480.77,0.0001531,2]
[352909553,1739412632389,-3491.54,0.0001531,2]
[352909554,1739412632399,-299.99,0.0001531,2]
[352909555,1739412632409,-16919.69,0.0001531,2]
[352909556,1739412632418,-639.75,0.0001531,2]
[352909557,1739412632427,-152.0,0.00015666,3]
[352909558,1739412632437,-501.65,0.00015668,2]
[352909559,1739412632446,-503.32,0.00015669,2]
[352909560,1739412632455,-507.58,0.00015669,2]
[352909561,1739412632464,-509.64,0.0001567,2]
[352909562,1739412632473,-509.13,0.00015672,2]
[352909563,1739412632483,-503.11,0.00015673,2]
[352909564,1739412632492,-502.36,0.00015675,2]
[352909565,1739412632502,-555.3625412,0.0001568,2]
[352909566,1739412632512,-493.99,0.00015713,2]
[352909567,1739412632521,-492.75,0.00015749,2]
[352909568,1739412632531,-681.05397264,0.0001576,2]
[352909569,1739412632540,-150.0,0.00015776,2]
[352909571,1739412632549,-150.0,0.00015777,2]
[352909572,1739412632559,-3915.0,0.00015777,2]
[352909573,1739412632568,-1008.0,0.00015777,2]
[352909574,1739412632577,-150.0,0.00015782,2]
[352909575,1739412632587,-150.0,0.00015787,2]
[352909576,1739412632596,-150.0,0.000158,2]
[352909577,1739412632605,-192.53186835,0.00015806,2]
[352909578,1739412632615,-2405.28109,0.0001582,2]
[352909579,1739412632624,-490.92,0.00015821,2]
[352909580,1739412632633,-150.0,0.00015836,2]
[352909581,1739412632643,-150.0,0.00015842,2]
[352909582,1739412632652,-178.75257106,0.00015869,2]
[352909583,1739412632661,-304.74891733,0.00015869,2]
[352909584,1739412632670,-500.0,0.00015869,2]
[352909585,1739412632680,-500.0,0.00015869,2]
[352909586,1739412632689,-500.0,0.00015869,2]
[352909587,1739412632698,-500.0,0.00015869,2]
[352909588,1739412632707,-500.0,0.00015869,2]
[352909589,1739412632716,-500.0,0.00015869,2]
[352909590,1739412632725,-500.0,0.00015869,2]
[352909591,1739412632735,-500.0,0.00015869,2]
[352909592,1739412632744,-500.0,0.00015869,2]
[352909593,1739412632753,-500.0,0.00015869,2]
[352909594,1739412632762,-500.0,0.00015869,2]
[352909595,1739412632771,-500.0,0.00015869,2]
[352909596,1739412632780,-500.0,0.00015869,2]
[352909597,1739412632789,-500.0,0.00015869,2]
[352909598,1739412632799,-500.0,0.00015869,2]
[352909599,1739412632808,-500.0,0.00015869,2]
[352909600,1739412632817,-500.0,0.00015869,2]
[352909601,1739412632827,-500.0,0.00015869,2]
[352909602,1739412632836,-500.0,0.00015869,2]
[352909603,1739412632845,-500.0,0.00015869,2]
[352909604,1739412632854,-500.0,0.00015869,2]
[352909605,1739412632863,-500.0,0.00015869,2]
[352909606,1739412632873,-500.0,0.00015869,2]
[352909607,1739412632883,-500.0,0.00015869,2]
[352909608,1739412632892,-500.0,0.00015869,2]
[352909609,1739412632901,-500.0,0.00015869,2]
[352909610,1739412632911,-500.0,0.00015869,2]
[352909611,1739412632920,-500.0,0.00015869,2]
[352909612,1739412632929,-500.0,0.00015869,2]
[352909613,1739412632939,-500.0,0.00015869,2]
[352909614,1739412632948,-500.0,0.00015869,2]
[352909615,1739412632958,-657.0,0.00015869,2]
[352909616,1739412632967,-150.4109351,0.00015872,2]
[352909617,1739412632977,-150.0,0.00015874,2]
[352909618,1739412632986,-334.57830417,0.0001588,2]
[352909619,1739412632996,-223.2559895,0.00015887,2]
[352909620,1739412633005,-223.2559895,0.00015889,2]
[352909621,1739412633018,-164.39072587,0.00015889,2]
[352909622,1739412633028,-460.44019904,0.0001589,2]
[352909623,1739412633038,-223.2559895,0.00015891,2]
[352909624,1739412633047,-223.2559895,0.00015892,2]
[352909625,1739412633057,-223.2559895,0.00015894,2]
[352909626,1739412633067,-223.2559895,0.00015895,2]
[352909627,1739412633077,-223.2559895,0.00015897,2]
[352909628,1739412633087,-223.2559895,0.00015898,2]
[352909629,1739412633096,-499.94,0.000159,2]
[352909630,1739412633105,-173.12453834,0.000159,2]
[352909631,1739412633115,-2553.6276211,0.000159,2]
[352909632,1739412633125,-223.2559895,0.000159,2]
[352909633,1739412633135,-566.18690274,0.000159,2]
[352909634,1739412633144,-207.74876007,0.000159,2]
[352909635,1739412633153,-564.13509389,0.000159,2]
[352909636,1739412633167,-578.83199599,0.000159,2]
[352909637,1739412633179,-150.0,0.00015912,2]
[352909638,1739412633188,-2553.62762106,0.00015956,2]
[352909639,1739412633199,-304.74891733,0.00015958,2]
[352909640,1739412633209,-200.0,0.00015959,2]
[352909641,1739412633219,-150.0,0.00015959,2]
[352909642,1739412633229,-162.044,0.00015959,2]
[352909643,1739412633238,-150.188,0.00015959,2]
[352909644,1739412633249,-150.0,0.00015959,2]
[352909645,1739412633259,-153.578,0.00015959,2]
[352909646,1739412633269,-2025.0,0.00015959,2]
[352909647,1739412633278,-1273.0,0.00015959,2]
[352909648,1739412633288,-638.0,0.00015959,2]
[352909649,1739412633298,-150.0,0.00015959,2]
[352909650,1739412633307,-569.0,0.00015959,2]
[352909651,1739412633317,-1786.0,0.00015959,2]
[352909652,1739412633326,-2956.0,0.00015959,2]
[352909653,1739412633336,-908.0,0.00015959,2]
[352909654,1739412633346,-1265.0,0.00015959,2]
[352909655,1739412633355,-783.0,0.00015959,2]
[352909656,1739412633365,-1713.01316512,0.00015959,2]
[352909657,1739412633378,-2313.98683488,0.00015959,2]
[352909658,1739412633388,-539.0,0.00015959,2]
[352909659,1739412633397,-150.0,0.00015962,2]
[352909660,1739412633408,-626.07376645,0.00015968,2]
[352909661,1739412633418,-94991.0345383,0.00015969,2]
[352909662,1739412633427,-258210.42586037,0.00015969,3]
[352909663,1739412633439,-6773.74391325,0.00015969,3]
[352909664,1739412633449,-15831.8390897,0.00015969,2]
[352909665,1739412633458,-12394.41699705,0.00015969,2]
[352909666,1739412633471,-43017.01981695,0.00015969,2]
[352909667,1739412633480,-500.0,0.00015973,2]
[352909668,1739412633490,-460.44019902,0.00015975,2]
[352909669,1739412633500,-176.66404612,0.00015978,2]
[352909670,1739412633510,-15831.8390897,0.00015979,2]
[352909671,1739412633520,-152.61,0.00015979,2]
[352909672,1739412633530,-40516.42684721,0.00015979,2]
[352909673,1739412633566,-409.74887246,0.00015979,2]
[352909685,1739412638052,-334.57830417,0.0001589,2]
[352909686,1739412638064,-160806.760089,0.00015968,3]
[352909687,1739412638078,-867.17753653,0.00015968,3]
[352909688,1739412638133,-318.46501115,0.00015968,3]
[352909689,1739412638145,-10227.06847447,0.00015968,3]
[352909690,1739412638339,-720.9341478,0.00015968,3]
[352909695,1739412640139,-334.57830417,0.000159,2]
[352909696,1739412640149,-2240.95014414,0.00015968,3]
[352909697,1739412640429,-500.0,0.00015869,2]
[352909698,1739412640439,-3.65,0.00015968,3]
[352909736,1739412643552,-500.0,0.00015869,2]
[352909738,1739412643562,-500.0,0.00015869,2]
[352909740,1739412643571,-500.0,0.00015869,2]
[352909742,1739412643580,-500.0,0.00015869,2]
[352909744,1739412643590,-500.0,0.00015869,2]
[352909746,1739412643599,-500.0,0.00015869,2]
[352909747,1739412643608,-500.0,0.00015869,2]
[352909748,1739412643617,-500.0,0.00015869,2]
[352909749,1739412643627,-500.0,0.00015869,2]
[352909750,1739412643637,-5628.24842269,0.00015968,3]
[352909751,1739412643650,-528.71740411,0.00015968,3]
[352909752,1739412643662,-1913.837,0.00015968,3]
[352909753,1739412643716,-253.44000023,0.00015968,3]
[352909754,1739412646138,-270.83207895,0.00015869,2]
[352909755,1739412646154,-229.16792105,0.00015869,2]
[352909756,1739412646166,-500.0,0.00015869,2]
[352909757,1739412646179,-500.0,0.00015869,2]
[352909758,1739412646190,-112.81347423,0.00015869,2]
[352909759,1739412646203,-387.18652577,0.00015869,2]
[352909760,1739412646216,-412.92690422,0.00015869,2]
[352909761,1739412646230,-87.07309578,0.00015869,2]
[352909762,1739412646239,-500.0,0.00015869,2]
[352909763,1739412646251,-500.0,0.00015869,2]
[352909764,1739412646262,-150.08654129,0.000159,2]
[352909765,1739412646271,-6184.93670219,0.00015968,3]
[352909766,1739412646313,-363.44736172,0.00015968,3]
[352909767,1739412646326,-74926.53747959,0.00015968,3]
[352909768,1739412646338,-72580.16610573,0.00015979,2]
[352909769,1739412646349,-498.53,0.00015979,2]
[352909770,1739412646360,-7915.91954486,0.0001598,2]
[352909771,1739412646371,-261225.34498,0.0001598,2]
[352909772,1739412646381,-151.91865225,0.0001598,2]
[352909773,1739412646393,-495.05,0.0001598,2]
[352909774,1739412646404,-273.29924511,0.0001598,2]
[352909775,1739412646414,-7915.91954486,0.00015989,2]
[352909776,1739412646423,-500.0,0.00015989,2]
[352909777,1739412646433,-500.0,0.00015989,2]
[352909778,1739412646444,-500.0,0.00015989,2]
[352909779,1739412646455,-500.0,0.00015989,2]
[352909780,1739412646466,-500.0,0.00015989,2]
[352909781,1739412646477,-503.0,0.00015989,2]
[352909782,1739412646487,-500.0,0.00015989,2]
[352909783,1739412646498,-500.0,0.00015989,2]
[352909784,1739412646508,-500.0,0.00015989,2]
[352909785,1739412646518,-500.0,0.00015989,2]
[352909786,1739412646527,-500.0,0.00015989,2]
[352909787,1739412646538,-500.0,0.00015989,2]
[352909788,1739412646547,-500.0,0.00015989,2]
[352909789,1739412646557,-500.0,0.00015989,2]
[352909790,1739412646567,-500.0,0.00015989,2]
[352909791,1739412646577,-500.0,0.00015989,2]
[352909792,1739412646587,-500.0,0.00015989,2]
[352909793,1739412646597,-500.0,0.00015989,2]
[352909794,1739412646608,-500.0,0.00015989,2]
[352909795,1739412646618,-500.0,0.00015989,2]
[352909796,1739412646629,-500.0,0.00015989,2]
[352909797,1739412646640,-500.0,0.00015989,2]
[352909798,1739412646650,-500.0,0.00015989,2]
[352909799,1739412646660,-500.0,0.00015989,2]
[352909800,1739412646671,-500.0,0.00015989,2]
[352909801,1739412646681,-500.0,0.00015989,2]
[352909802,1739412646692,-500.0,0.00015989,2]
[352909803,1739412646701,-500.0,0.00015989,2]
[352909804,1739412646712,-500.0,0.00015989,2]
[352909805,1739412646723,-500.0,0.00015989,2]
[352909806,1739412646734,-500.0,0.00015989,2]
[352909807,1739412646744,-500.0,0.00015989,2]
[352909808,1739412646756,-500.0,0.00015989,2]
[352909809,1739412646767,-500.0,0.00015989,2]
[352909810,1739412646777,-500.0,0.00015989,2]
[352909811,1739412646788,-500.0,0.00015989,2]
[352909812,1739412646798,-500.0,0.00015989,2]
[352909813,1739412646808,-500.0,0.00015989,2]
[352909814,1739412646818,-500.0,0.00015989,2]
[352909815,1739412646827,-500.0,0.00015989,2]
[352909816,1739412646837,-500.0,0.00015989,2]
[352909817,1739412646846,-500.0,0.00015989,2]
[352909818,1739412646856,-500.0,0.00015989,2]
[352909819,1739412646865,-500.0,0.00015989,2]
[352909820,1739412646875,-500.0,0.00015989,2]
[352909821,1739412646884,-500.0,0.00015989,2]
[352909822,1739412646894,-500.0,0.00015989,2]
[352909823,1739412646904,-500.0,0.00015989,2]
[352909824,1739412646915,-500.0,0.00015989,2]
[352909825,1739412647167,-500.0,0.00015989,2]
[352909826,1739412647177,-500.0,0.00015989,2]
[352909827,1739412647188,-500.0,0.00015989,2]
[352909828,1739412647199,-500.0,0.00015989,2]
[352909829,1739412647212,-500.0,0.00015989,2]
[352909830,1739412647222,-500.0,0.00015989,2]
[352909831,1739412647233,-500.0,0.00015989,2]
[352909832,1739412647244,-500.0,0.00015989,2]
[352909833,1739412647256,-500.0,0.00015989,2]
[352909834,1739412647266,-616.0,0.00015989,2]
[352909835,1739412647277,-5694.8530456,0.00015989,2]
[352909836,1739412647287,-4561.3054059,0.00015989,2]
[352909837,1739412647296,-2074.5602189,0.00015989,2]
[352909838,1739412647306,-3149.5900216,0.00015989,2]
[352909839,1739412647316,-155.82583623,0.0001599,2]
[352909840,1739412647326,-1438.0,0.0001599,2]
[352909841,1739412647336,-500.0,0.0001599,2]
[352909842,1739412647346,-500.0,0.0001599,2]
[352909843,1739412647356,-500.0,0.0001599,2]
[352909844,1739412647366,-500.0,0.0001599,2]
[352909845,1739412647377,-500.0,0.0001599,2]
[352909846,1739412647387,-500.0,0.0001599,2]
[352909847,1739412647397,-500.0,0.0001599,2]
[352909848,1739412647406,-142486.551807,0.0001599,2]
[352909849,1739412647417,-152.61,0.0001599,2]
[352909850,1739412647426,-152.61,0.0001599,2]
[352909851,1739412647435,-152.61,0.0001599,2]
[352909852,1739412647445,-152.61,0.0001599,2]
[352909853,1739412647454,-152.61,0.0001599,2]
[352909854,1739412647464,-152.61,0.0001599,2]
[352909855,1739412647473,-152.61,0.0001599,2]
[352909856,1739412647483,-152.61,0.0001599,2]
[352909857,1739412647492,-152.61,0.0001599,2]
[352909858,1739412647502,-152.61,0.0001599,2]
[352909859,1739412647512,-152.61,0.0001599,2]
[352909860,1739412647522,-152.61,0.0001599,2]
[352909861,1739412647532,-152.61,0.0001599,2]
[352909862,1739412647542,-152.61,0.0001599,2]
[352909863,1739412647551,-152.61,0.0001599,2]
[352909864,1739412647560,-152.61,0.0001599,2]
[352909865,1739412647570,-152.61,0.0001599,2]
[352909866,1739412647579,-152.61,0.0001599,2]
[352909867,1739412647589,-152.61,0.0001599,2]
[352909868,1739412647599,-152.61,0.0001599,2]
[352909869,1739412647610,-152.61,0.0001599,2]
[352909870,1739412647619,-152.61,0.0001599,2]
[352909871,1739412647629,-300.0,0.00015999,2]
[352909872,1739412647638,-500.0,0.00015999,2]
[352909873,1739412647648,-219085.12710138,0.00016,2]
[352909874,1739412647661,-35422.3977304,0.00016,2]
[352909875,1739412647686,-4119.94869119,0.00016,2]
[352909876,1739412647738,-500.0,0.00015869,2]
[352909877,1739412647748,-4604.03259326,0.00016,2]
[352909878,1739412684612,4248.7825,8.973e-05,2]
[352909879,1739412776466,26158.7125,8.973e-05,2]
[352909880,1739412821038,162.13,0.00010137,2]
[352909881,1739413199027,652.7534008,0.0002,120]
[352909882,1739413393174,500.0,0.0002,120]
[352909883,1739413403689,500.0,0.0002,120]
[352909884,1739413412424,500.0,0.0002,120]
[352909885,1739413425572,500.0,0.0002,120]
[352909886,1739413520568,4754.20407753,9e-05,2]
[352909894,1739413676431,6169.13870909,0.00020735,120]
[352909901,1739413725533,10623.31488847,0.0001,2]
[352909902,1739413744486,324.41,0.00015,30]
[352909915,1739413832167,-637.02,0.00012718,2]
[352909917,1739413832178,-550.0,0.00013,2]
[352909919,1739413832188,-214.16,0.00014228,2]
[352909921,1739413832197,-177.72,0.00014555,2]
[352909923,1739413832208,-783.96244476,0.00014559,2]
[352909925,1739413832218,-495.69,0.00014659,2]
[352909926,1739413832227,-154.35,0.00014735,2]
[352909927,1739413832237,-154.35,0.00014746,2]
[352909928,1739413832247,-154.35,0.00014756,2]
[352909929,1739413832257,-250.0,0.00014757,2]
[352909930,1739413832268,-154.35,0.00014767,2]
[352909931,1739413832279,-154.35,0.00014777,2]
[352909932,1739413832290,-154.35,0.00014788,2]
[352909933,1739413832300,-154.35,0.00014798,2]
[352909934,1739413832310,-154.35,0.00014809,2]
[352909935,1739413832319,-1000.0,0.0001481,2]
[352909936,1739413832331,-637.02,0.00014982,2]
[352909937,1739413832341,-150.0,0.00014992,2]
[352909938,1739413832353,-600.0,0.00015,2]
[352909939,1739413832364,-509.46,0.00015023,2]
[352909940,1739413832374,-498.05,0.00015055,2]
[352909941,1739413832385,-300.0,0.00015179,2]
[352909942,1739413832395,-255.0,0.00015179,2]
[352909943,1739413832406,-507.19,0.00015179,2]
[352909944,1739413832416,-491.05,0.00015179,2]
[352909945,1739413832425,-506.38,0.0001518,2]
[352909946,1739413832435,-494.68,0.0001518,2]
[352909947,1739413832445,-30000.0,0.0001518,2]
[352909948,1739413832457,-150.99,0.0001531,2]
[352909949,1739413832469,-558.82,0.0001531,2]
[352909950,1739413832479,-200.0,0.00015603,5]
[352909951,1739413832489,-200.0,0.00015625,5]
[352909952,1739413832499,-152.29,0.00015679,2]
[352909953,1739413832509,-150.78,0.00015679,2]
[352909954,1739413832518,-152.23,0.0001568,2]
[352909955,1739413832529,-532.6225559,0.0001568,2]
[352909956,1739413832538,-4773.56111038,0.0001569,2]
[352909957,1739413832548,-282191.37208481,0.000157,3]
[352909958,1739413832560,-150.0,0.00015714,2]
[352909959,1739413832569,-150.0,0.00015718,2]
[352909960,1739413832579,-150.0,0.00015719,2]
[352909973,1739413832842,-309.36901403,0.00015732,2]
[352909974,1739413832856,-150.0,0.00015738,2]
[352909975,1739413832866,-300.0,0.00015746,2]
[352909976,1739413832876,-309.36901403,0.00015747,2]
[352909977,1739413832886,-202.0,0.00015756,2]